fUST/lending_fUST_20250727
["ID","MTS","AMOUNT","RATE_DAILY","PERIOD"]
[375276241,1753613444407,-431.9798994,0.00019726,2]
[375276242,1753613444417,-460.0,0.00019726,2]
[375276243,1753613444426,-1190.51,0.00019726,2]
[375276244,1753613444436,-470.34,0.00019726,2]
[375276245,1753613444446,-702.09,0.00019726,2]
[375276246,1753613444455,-460.0,0.00019726,2]
[375276247,1753613444465,-460.0,0.00019726,2]
[375276248,1753613444474,-1913.66,0.00019726,2]
[375276249,1753613444484,-460.0,0.00019726,2]
[375276250,1753613444493,-460.0,0.00019726,2]
[375276251,1753613444502,-460.9,0.00019726,2]
[375276252,1753613444512,-460.0,0.00019726,2]
[375276253,1753613444526,-460.0,0.00019726,2]
[375276254,1753613444535,-460.0,0.00019726,2]
[375276255,1753613444545,-460.0,0.00019726,2]
[375276256,1753613444554,-1290.92,0.00019726,2]
[375276257,1753613444564,-3331.73,0.00019726,2]
[375276258,1753613444574,-460.0,0.00019726,2]
[375276259,1753613444584,-1781.4,0.00019726,2]
[375276260,1753613444595,-460.0,0.00019726,2]
[375276261,1753613444605,-460.0,0.00019726,2]
[375276262,1753613444615,-598.51,0.00019726,2]
[375276263,1753613444626,-1489.24,0.00019726,2]
[375276264,1753613444637,-460.0,0.00019726,2]
[375276265,1753613444647,-460.0,0.00019726,2]
[375276266,1753613444656,-460.0,0.00019726,2]
[375276267,1753613444666,-460.0,0.00019726,2]
[375276268,1753613444676,-460.0,0.00019726,2]
[375276269,1753613444685,-1348.54,0.00019726,2]
[375276270,1753613444695,-533.33,0.00019726,2]
[375276271,1753613444705,-460.0,0.00019726,2]
[375276272,1753613444715,-491.78,0.00019726,2]
[375276273,1753613444725,-1775.79,0.00019726,2]
[375276274,1753613444735,-560.49,0.00019726,2]
[375276275,1753613444744,-460.0,0.00019726,2]
[375276276,1753613444756,-941.06,0.00019726,2]
[375276277,1753613444766,-460.0,0.00019726,2]
[375276278,1753613444777,-460.0,0.00019726,2]
[375276279,1753613444786,-460.0,0.00019726,2]
[375276280,1753613444795,-460.0,0.00019726,2]
[375276281,1753613444805,-460.0,0.00019726,2]
[375276282,1753613444814,-460.0,0.00019726,2]
[375276283,1753613444824,-507.94,0.00019726,2]
[375276284,1753613444835,-460.0,0.00019726,2]
[375276285,1753613444844,-460.0,0.00019726,2]
[375276286,1753613444853,-460.0,0.00019726,2]
[375276287,1753613444863,-460.0,0.00019726,2]
[375276288,1753613444872,-460.0,0.00019726,2]
[375276289,1753613444883,-460.0,0.00019726,2]
[375276290,1753613444892,-602.02,0.00019726,2]
[375276291,1753613444901,-460.0,0.00019726,2]
[375276292,1753613444911,-500.0,0.00019773,2]
[375276293,1753613444920,-500.0,0.00019773,2]
[375276294,1753613444929,-500.0,0.00019773,2]
[375276295,1753613444938,-500.0,0.00019773,2]
[375276296,1753613444947,-399.88733593,0.00019773,2]
[375276297,1753613444956,-503.65121091,0.00019773,2]
[375276298,1753613444966,-500.0,0.00019773,2]
[375276299,1753613444975,-500.0,0.00019773,2]
[375276300,1753613444984,-500.0,0.00019773,2]
[375276301,1753613444993,-500.0,0.00019773,2]
[375276302,1753613445003,-183.50550202,0.00019773,2]
[375276303,1753613445013,-501.94752699,0.00019773,2]
[375276304,1753613445022,-500.0,0.00019773,2]
[375276305,1753613445035,-4093.36480936,0.000199,2]
[375276306,1753613445045,-526.50274803,0.00019961,2]
[375276307,1753613445055,-12632.25855046,0.00019961,2]
[375276308,1753613445065,-160.0,0.00019962,2]
[375276309,1753613445075,-160.0,0.00019962,2]
[375276310,1753613445092,-214.84090509,0.00019962,2]
[375276311,1753613445105,-160.0,0.00019962,2]
[375276312,1753613445115,-160.0,0.00019962,2]
[375276313,1753613445125,-216.01841554,0.00019962,2]
[375276314,1753613445135,-840.75038169,0.00019962,2]
[375276315,1753613445145,-231.30466539,0.00019962,2]
[375276316,1753613445156,-160.0,0.00019962,2]
[375276317,1753613445166,-252.91039381,0.00019968,2]
[375276318,1753613445176,-502.08470282,0.00019973,2]
[375276319,1753613445187,-500.0,0.00019973,2]
[375276320,1753613445196,-100000.0,0.0001999,2]
[375276321,1753613445207,-500.0,0.00019999,2]
[375276322,1753613445217,-557.41359986,0.00019999,2]
[375276323,1753613445226,-557.41359986,0.00019999,2]
[375276324,1753613445236,-292.12890634,0.00019999,2]
[375276325,1753613445246,-557.41359986,0.00019999,2]
[375276326,1753613445256,-557.41359986,0.00019999,2]
[375276327,1753613445266,-557.41359986,0.00019999,2]
[375276328,1753613445278,-557.41359986,0.00019999,2]
[375276329,1753613445288,-557.41359986,0.00019999,2]
[375276330,1753613445298,-557.41359986,0.00019999,2]
[375276331,1753613445309,-557.41359986,0.00019999,2]
[375276332,1753613445319,-557.41359986,0.00019999,2]
[375276333,1753613445329,-557.41359986,0.00019999,2]
[375276334,1753613445338,-557.41359986,0.00019999,2]
[375276335,1753613445348,-557.41359986,0.00019999,2]
[375276336,1753613445358,-557.41359986,0.00019999,2]
[375276337,1753613445367,-557.41359986,0.00019999,2]
[375276338,1753613445377,-722.7454211,0.00019999,2]
[375276339,1753613445387,-722.7454211,0.00019999,2]
[375276341,1753613445398,-722.7454211,0.00019999,2]
[375276343,1753613445408,-722.7454211,0.00019999,2]
[375276344,1753613445418,-722.7454211,0.00019999,2]
[375276345,1753613445428,-722.7454211,0.00019999,2]
[375276346,1753613445438,-722.7454211,0.00019999,2]
[375276347,1753613445448,-722.7454211,0.00019999,2]
[375276348,1753613445458,-722.7454211,0.00019999,2]
[375276349,1753613445467,-722.7454211,0.00019999,2]
[375276350,1753613445478,-722.7454211,0.00019999,2]
[375276351,1753613445487,-722.7454211,0.00019999,2]
[375276352,1753613445497,-460.0,0.0002,2]
[375276354,1753613445507,-460.0,0.0002,2]
[375276356,1753613445518,-460.0,0.0002,2]
[375276357,1753613445531,-667.61,0.0002,2]
[375276358,1753613445540,-460.0,0.0002,2]
[375276359,1753613445555,-460.0,0.0002,2]
[375276360,1753613445565,-460.0,0.0002,2]
[375276361,1753613445575,-460.0,0.0002,2]
[375276362,1753613445585,-520.44,0.0002,2]
[375276363,1753613445595,-460.0,0.0002,2]
[375276364,1753613445604,-572.9,0.0002,2]
[375276365,1753613445618,-460.0,0.0002,2]
[375276366,1753613445628,-428.43032593,0.0002,2]
[375276367,1753613445638,-460.0,0.0002,2]
[375276368,1753613445648,-460.0,0.0002,2]
[375276369,1753613445659,-460.0,0.0002,2]
[375276371,1753613445669,-460.0,0.0002,2]
[375276373,1753613445678,-460.0,0.0002,2]
[375276375,1753613445688,-460.0,0.0002,2]
[375276377,1753613445698,-173.743,0.0002,2]
[375276380,1753613445708,-460.0,0.0002,2]
[375276382,1753613445718,-460.0,0.0002,2]
[375276384,1753613445728,-460.0,0.0002,2]
[375276386,1753613445738,-460.0,0.0002,2]
[375276388,1753613445748,-471.68642377,0.0002,2]
[375276390,1753613445757,-460.0,0.0002,2]
[375276392,1753613445767,-460.0,0.0002,2]
[375276394,1753613445779,-383.55318024,0.0002,2]
[375276396,1753613445789,-460.0,0.0002,2]
[375276398,1753613445799,-460.0,0.0002,2]
[375276400,1753613445809,-460.0,0.0002,2]
[375276402,1753613445822,-460.0,0.0002,2]
[375276404,1753613445832,-2898.81,0.0002,2]
[375276406,1753613445841,-460.0,0.0002,2]
[375276408,1753613445851,-460.0,0.0002,2]
[375276410,1753613445861,-460.0,0.0002,2]
[375276412,1753613445872,-460.0,0.0002,2]
[375276414,1753613445882,-460.0,0.0002,2]
[375276416,1753613445891,-460.0,0.0002,2]
[375276418,1753613445901,-460.0,0.0002,2]
[375276420,1753613445911,-567.09393117,0.0002,2]
[375276422,1753613445920,-460.0,0.0002,2]
[375276424,1753613445930,-460.0,0.0002,2]
[375276426,1753613445940,-460.0,0.0002,2]
[375276428,1753613445950,-460.0,0.0002,2]
[375276431,1753613445959,-460.0,0.0002,2]
[375276433,1753613445969,-1397.36,0.0002,2]
[375276434,1753613445979,-467.09929477,0.0002,2]
[375276435,1753613445989,-751.12,0.0002,2]
[375276436,1753613445999,-460.0,0.0002,2]
[375276437,1753613446009,-460.0,0.0002,2]
[375276438,1753613446019,-460.0,0.0002,2]
[375276439,1753613446031,-460.0,0.0002,2]
[375276440,1753613446041,-460.0,0.0002,2]
[375276441,1753613446051,-528.64,0.0002,2]
[375276442,1753613446061,-460.0,0.0002,2]
[375276443,1753613446071,-460.0,0.0002,2]
[375276444,1753613446080,-893.59,0.0002,2]
[375276445,1753613446090,-460.0,0.0002,2]
[375276446,1753613446100,-460.0,0.0002,2]
[375276447,1753613446111,-2457.52,0.0002,2]
[375276448,1753613446121,-501.02,0.0002,2]
[375276449,1753613446131,-460.0,0.0002,2]
[375276450,1753613446270,-460.0,0.0002,2]
[375276451,1753613446298,-818.84,0.0002,2]
[375276452,1753613446308,-460.0,0.0002,2]
[375276453,1753613446318,-460.0,0.0002,2]
[375276454,1753613446327,-552.49,0.0002,2]
[375276455,1753613446337,-460.0,0.0002,2]
[375276456,1753613446347,-872.85,0.0002,2]
[375276457,1753613446356,-1240.56,0.0002,2]
[375276458,1753613446366,-460.0,0.0002,2]
[375276459,1753613446375,-460.0,0.0002,2]
[375276460,1753613446385,-1190.51,0.0002,2]
[375276461,1753613446395,-470.34,0.0002,2]
[375276462,1753613446405,-702.09,0.0002,2]
[375276463,1753613446415,-460.0,0.0002,2]
[375276464,1753613446424,-460.0,0.0002,2]
[375276465,1753613446434,-1913.66,0.0002,2]
[375276466,1753613446444,-460.0,0.0002,2]
[375276467,1753613446454,-460.0,0.0002,2]
[375276468,1753613446463,-460.9,0.0002,2]
[375276469,1753613446473,-460.0,0.0002,2]
[375276470,1753613446483,-460.0,0.0002,2]
[375276471,1753613446493,-460.0,0.0002,2]
[375276472,1753613446502,-1290.92,0.0002,2]
[375276473,1753613446512,-3331.73,0.0002,2]
[375276474,1753613446521,-1781.4,0.0002,2]
[375276475,1753613446533,-460.0,0.0002,2]
[375276476,1753613446543,-460.0,0.0002,2]
[375276477,1753613446553,-460.0,0.0002,2]
[375276478,1753613446563,-598.51,0.0002,2]
[375276479,1753613446572,-460.0,0.0002,2]
[375276480,1753613446582,-1489.24,0.0002,2]
[375276481,1753613446591,-252.03436132,0.0002,2]
[375276482,1753613446601,-460.0,0.0002,2]
[375276483,1753613446611,-1348.54,0.0002,2]
[375276484,1753613446621,-533.33,0.0002,2]
[375276485,1753613446632,-491.78,0.0002,2]
[375276486,1753613446642,-1775.79,0.0002,2]
[375276487,1753613446652,-560.49,0.0002,2]
[375276488,1753613446662,-460.0,0.0002,2]
[375276489,1753613446671,-941.06,0.0002,2]
[375276490,1753613446682,-460.0,0.0002,2]
[375276491,1753613446692,-460.0,0.0002,2]
[375276492,1753613446701,-460.0,0.0002,2]
[375276493,1753613446710,-560.14817577,0.0002,2]
[375276494,1753613446722,-460.0,0.0002,2]
[375276495,1753613446737,-507.94,0.0002,2]
[375276496,1753613446747,-465.72489267,0.0002,2]
[375276497,1753613446757,-460.0,0.0002,2]
[375276498,1753613446766,-460.0,0.0002,2]
[375276499,1753613446779,-460.0,0.0002,2]
[375276500,1753613446789,-460.0,0.0002,2]
[375276501,1753613446799,-602.02,0.0002,2]
[375276502,1753613446808,-460.0,0.0002,2]
[375276503,1753613446818,-500.0,0.00020021,2]
[375276504,1753613446828,-4093.36480933,0.00020107,2]
[375276505,1753613446838,-212.0,0.00020164,3]
[375276506,1753613446847,-350.973063,0.00020187,2]
[375276507,1753613446857,-641.24026091,0.00020268,2]
[375276508,1753613446867,-460.0,0.00020273,2]
[375276509,1753613446876,-667.61,0.00020273,2]
[375276510,1753613446886,-460.0,0.00020273,2]
[375276511,1753613446896,-460.0,0.00020273,2]
[375276512,1753613446906,-460.0,0.00020273,2]
[375276513,1753613446915,-460.0,0.00020273,2]
[375276514,1753613446925,-460.0,0.00020273,2]
[375276515,1753613446935,-460.0,0.00020273,2]
[375276516,1753613446944,-460.0,0.00020273,2]
[375276517,1753613446954,-460.0,0.00020273,2]
[375276518,1753613446964,-460.0,0.00020273,2]
[375276519,1753613446973,-460.0,0.00020273,2]
[375276520,1753613446983,-460.0,0.00020273,2]
[375276521,1753613446992,-460.0,0.00020273,2]
[375276522,1753613447002,-460.0,0.00020273,2]
[375276523,1753613447012,-460.0,0.00020273,2]
[375276524,1753613447022,-460.0,0.00020273,2]
[375276525,1753613447034,-460.0,0.00020273,2]
[375276526,1753613447043,-460.0,0.00020273,2]
[375276527,1753613447053,-2898.81,0.00020273,2]
[375276528,1753613447063,-460.0,0.00020273,2]
[375276529,1753613447072,-460.0,0.00020273,2]
[375276530,1753613447082,-460.0,0.00020273,2]
[375276531,1753613447091,-460.0,0.00020273,2]
[375276532,1753613447100,-460.0,0.00020273,2]
[375276533,1753613447110,-460.0,0.00020273,2]
[375276534,1753613447120,-460.0,0.00020273,2]
[375276535,1753613447129,-460.0,0.00020273,2]
[375276536,1753613447139,-460.0,0.00020273,2]
[375276537,1753613447148,-460.0,0.00020273,2]
[375276538,1753613447158,-1397.36,0.00020273,2]
[375276539,1753613447167,-751.12,0.00020273,2]
[375276540,1753613447177,-460.0,0.00020273,2]
[375276541,1753613447186,-460.0,0.00020273,2]
[375276542,1753613447196,-460.0,0.00020273,2]
[375276543,1753613447205,-460.0,0.00020273,2]
[375276544,1753613447215,-460.0,0.00020273,2]
[375276545,1753613447224,-528.64,0.00020273,2]
[375276546,1753613447234,-460.0,0.00020273,2]
[375276547,1753613447245,-460.0,0.00020273,2]
[375276548,1753613447255,-893.59,0.00020273,2]
[375276549,1753613447264,-460.0,0.00020273,2]
[375276550,1753613447276,-460.0,0.00020273,2]
[375276551,1753613447286,-2457.52,0.00020273,2]
[375276552,1753613447296,-501.02,0.00020273,2]
[375276553,1753613447305,-460.0,0.00020273,2]
[375276554,1753613447315,-460.0,0.00020273,2]
[375276555,1753613447325,-818.84,0.00020273,2]
[375276556,1753613447334,-460.0,0.00020273,2]
[375276557,1753613447344,-552.49,0.00020273,2]
[375276558,1753613447353,-460.0,0.00020273,2]
[375276559,1753613447363,-460.0,0.00020273,2]
[375276560,1753613447372,-872.85,0.00020273,2]
[375276561,1753613447382,-1240.56,0.00020273,2]
[375276562,1753613447392,-460.0,0.00020273,2]
[375276563,1753613447401,-460.0,0.00020273,2]
[375276564,1753613447410,-470.34,0.00020273,2]
[375276565,1753613447420,-1190.51,0.00020273,2]
[375276566,1753613447429,-702.09,0.00020273,2]
[375276567,1753613447439,-460.0,0.00020273,2]
[375276568,1753613447448,-460.0,0.00020273,2]
[375276569,1753613447457,-1913.66,0.00020273,2]
[375276570,1753613447467,-460.0,0.00020273,2]
[375276571,1753613447477,-460.0,0.00020273,2]
[375276572,1753613447486,-460.9,0.00020273,2]
[375276573,1753613447495,-460.0,0.00020273,2]
[375276574,1753613447504,-460.0,0.00020273,2]
[375276575,1753613447514,-1290.92,0.00020273,2]
[375276576,1753613447523,-3331.73,0.00020273,2]
[375276577,1753613447536,-1781.4,0.00020273,2]
[375276578,1753613447545,-460.0,0.00020273,2]
[375276579,1753613447555,-460.0,0.00020273,2]
[375276580,1753613447564,-460.0,0.00020273,2]
[375276581,1753613447574,-598.51,0.00020273,2]
[375276582,1753613447583,-460.0,0.00020273,2]
[375276583,1753613447593,-1489.24,0.00020273,2]
[375276584,1753613447603,-460.0,0.00020273,2]
[375276585,1753613447612,-1348.54,0.00020273,2]
[375276586,1753613447623,-533.33,0.00020273,2]
[375276587,1753613447633,-491.78,0.00020273,2]
[375276588,1753613447642,-1775.79,0.00020273,2]
[375276589,1753613447651,-560.49,0.00020273,2]
[375276590,1753613447662,-460.0,0.00020273,2]
[375276591,1753613447671,-941.06,0.00020273,2]
[375276592,1753613447680,-460.0,0.00020273,2]
[375276593,1753613447690,-460.0,0.00020273,2]
[375276594,1753613447701,-460.0,0.00020273,2]
[375276595,1753613447711,-460.0,0.00020273,2]
[375276596,1753613447721,-507.94,0.00020273,2]
[375276597,1753613447731,-460.0,0.00020273,2]
[375276598,1753613447740,-460.0,0.00020273,2]
[375276599,1753613447750,-460.0,0.00020273,2]
[375276600,1753613447759,-460.0,0.00020273,2]
[375276601,1753613447769,-602.02,0.00020273,2]
[375276602,1753613447780,-460.0,0.00020273,2]
[375276603,1753613447789,-4093.36480933,0.00020314,3]
[375276604,1753613447799,-1000.0,0.00020321,2]
[375276605,1753613447809,-1000.0,0.00020321,2]
[375276606,1753613447818,-1000.0,0.00020321,2]
[375276607,1753613447827,-509.37952605,0.00020321,2]
[375276608,1753613447836,-1002.96019274,0.00020321,2]
[375276609,1753613447846,-837.13758042,0.00020447,3]
[375276610,1753613447855,-1008.23729823,0.00020447,2]
[375276611,1753613447864,-160.0,0.0002045,2]
[375276612,1753613447874,-503.64992853,0.00020521,2]
[375276613,1753613447883,-4093.36480933,0.00020521,3]
[375276614,1753613447892,-393.44,0.00020538,3]
[375276615,1753613447902,-460.0,0.00020547,2]
[375276616,1753613447911,-667.61,0.00020547,2]
[375276617,1753613447920,-460.0,0.00020547,2]
[375276618,1753613447929,-460.0,0.00020547,2]
[375276619,1753613447938,-434.3438359,0.00020547,2]
[375276620,1753613447948,-460.0,0.00020547,2]
[375276621,1753613447957,-301.53,0.00020547,2]
[375276622,1753613447967,-460.0,0.00020547,2]
[375276623,1753613447977,-460.0,0.00020547,2]
[375276624,1753613447987,-460.0,0.00020547,2]
[375276625,1753613447996,-460.0,0.00020547,2]
[375276626,1753613448005,-460.0,0.00020547,2]
[375276627,1753613448015,-460.0,0.00020547,2]
[375276628,1753613448028,-2898.81,0.00020547,2]
[375276629,1753613448037,-460.0,0.00020547,2]
[375276630,1753613448048,-460.0,0.00020547,2]
[375276631,1753613448057,-460.0,0.00020547,2]
[375276632,1753613448067,-460.0,0.00020547,2]
[375276633,1753613448076,-460.0,0.00020547,2]
[375276634,1753613448086,-460.0,0.00020547,2]
[375276635,1753613448096,-460.0,0.00020547,2]
[375276636,1753613448106,-1397.36,0.00020547,2]
[375276637,1753613448116,-751.12,0.00020547,2]
[375276638,1753613448126,-460.0,0.00020547,2]
[375276639,1753613448135,-460.0,0.00020547,2]
[375276640,1753613448145,-460.0,0.00020547,2]
[375276641,1753613448155,-591.7221682,0.00020547,2]
[375276642,1753613448165,-460.0,0.00020547,2]
[375276643,1753613448175,-528.64,0.00020547,2]
[375276644,1753613448186,-465.43260636,0.00020547,2]
[375276645,1753613448195,-460.0,0.00020547,2]
[375276646,1753613448205,-893.59,0.00020547,2]
[375276647,1753613448216,-460.0,0.00020547,2]
[375276648,1753613448225,-460.0,0.00020547,2]
[375276649,1753613448235,-2457.52,0.00020547,2]
[375276650,1753613448244,-501.02,0.00020547,2]
[375276651,1753613448254,-460.0,0.00020547,2]
[375276652,1753613448264,-460.0,0.00020547,2]
[375276653,1753613448275,-818.84,0.00020547,2]
[375276654,1753613448286,-460.0,0.00020547,2]
[375276655,1753613448324,-552.49,0.00020547,2]
[375276656,1753613448335,-570.30705259,0.00020547,2]
[375276657,1753613448345,-460.0,0.00020547,2]
[375276658,1753613448354,-872.85,0.00020547,2]
[375276659,1753613448364,-460.0,0.00020547,2]
[375276660,1753613448374,-1240.56,0.00020547,2]
[375276661,1753613448383,-460.0,0.00020547,2]
[375276662,1753613448393,-470.34,0.00020547,2]
[375276663,1753613448403,-1190.51,0.00020547,2]
[375276664,1753613448412,-702.09,0.00020547,2]
[375276665,1753613448421,-460.0,0.00020547,2]
[375276666,1753613448430,-460.0,0.00020547,2]
[375276667,1753613448440,-1913.66,0.00020547,2]
[375276668,1753613448449,-356.7184415,0.00020547,2]
[375276669,1753613448459,-460.0,0.00020547,2]
[375276670,1753613448468,-460.9,0.00020547,2]
[375276671,1753613448478,-460.0,0.00020547,2]
[375276672,1753613448487,-460.0,0.00020547,2]
[375276673,1753613448497,-1290.92,0.00020547,2]
[375276674,1753613448507,-3331.73,0.00020547,2]
[375276675,1753613448516,-460.0,0.00020547,2]
[375276676,1753613448526,-1781.4,0.00020547,2]
[375276677,1753613448537,-460.0,0.00020547,2]
[375276678,1753613448546,-460.0,0.00020547,2]
[375276679,1753613448556,-598.51,0.00020547,2]
[375276680,1753613448565,-460.0,0.00020547,2]
[375276681,1753613448575,-1489.24,0.00020547,2]
[375276682,1753613448584,-460.0,0.00020547,2]
[375276683,1753613448593,-1348.54,0.00020547,2]
[375276684,1753613448603,-533.33,0.00020547,2]
[375276685,1753613448613,-491.78,0.00020547,2]
[375276686,1753613448623,-1775.79,0.00020547,2]
[375276687,1753613448634,-560.49,0.00020547,2]
[375276688,1753613448643,-460.0,0.00020547,2]
[375276689,1753613448653,-460.0,0.00020547,2]
[375276690,1753613448663,-941.06,0.00020547,2]
[375276691,1753613448673,-460.0,0.00020547,2]
[375276692,1753613448684,-466.48867009,0.00020547,2]
[375276693,1753613448693,-507.94,0.00020547,2]
[375276694,1753613448702,-460.0,0.00020547,2]
[375276695,1753613448712,-460.0,0.00020547,2]
[375276696,1753613448722,-460.0,0.00020547,2]
[375276697,1753613448732,-460.0,0.00020547,2]
[375276698,1753613448741,-500.0,0.0002058,2]
[375276699,1753613448751,-500.0,0.0002058,2]
[375276700,1753613448760,-501.23261909,0.0002058,2]
[375276701,1753613448769,-252.91039381,0.00020585,2]
[375276702,1753613448782,-4093.36480933,0.00020728,3]
[375276703,1753613448792,-420.0,0.00020792,2]
[375276704,1753613448801,-667.61,0.00020821,2]
[375276705,1753613448811,-460.0,0.00020821,2]
[375276706,1753613448820,-460.0,0.00020821,2]
[375276707,1753613448829,-460.0,0.00020821,2]
[375276708,1753613448839,-460.0,0.00020821,2]
[375276709,1753613448849,-595.52,0.00020821,2]
[375276710,1753613448858,-2898.81,0.00020821,2]
[375276711,1753613448868,-460.0,0.00020821,2]
[375276712,1753613448878,-460.0,0.00020821,2]
[375276713,1753613448888,-460.0,0.00020821,2]
[375276714,1753613448898,-460.0,0.00020821,2]
[375276715,1753613448907,-460.0,0.00020821,2]
[375276716,1753613448916,-460.0,0.00020821,2]
[375276717,1753613448925,-1397.36,0.00020821,2]
[375276718,1753613448935,-751.12,0.00020821,2]
[375276719,1753613448944,-460.0,0.00020821,2]
[375276720,1753613448954,-460.0,0.00020821,2]
[375276721,1753613448964,-460.0,0.00020821,2]
[375276722,1753613448974,-528.64,0.00020821,2]
[375276723,1753613448983,-893.59,0.00020821,2]
[375276724,1753613448994,-460.0,0.00020821,2]
[375276725,1753613449003,-2457.52,0.00020821,2]
[375276726,1753613449013,-501.02,0.00020821,2]
[375276727,1753613449023,-460.0,0.00020821,2]
[375276728,1753613449036,-460.0,0.00020821,2]
[375276729,1753613449046,-818.84,0.00020821,2]
[375276730,1753613449056,-460.0,0.00020821,2]
[375276731,1753613449065,-552.49,0.00020821,2]
[375276732,1753613449074,-872.85,0.00020821,2]
[375276733,1753613449084,-1240.56,0.00020821,2]
[375276734,1753613449093,-470.34,0.00020821,2]
[375276735,1753613449103,-1190.51,0.00020821,2]
[375276736,1753613449113,-702.09,0.00020821,2]
[375276737,1753613449123,-460.0,0.00020821,2]
[375276738,1753613449132,-460.0,0.00020821,2]
[375276739,1753613449142,-1913.66,0.00020821,2]
[375276740,1753613449152,-460.0,0.00020821,2]
[375276741,1753613449162,-242.98103125,0.00020821,2]
[375276742,1753613449270,-217.91896875,0.00020821,2]
[375276743,1753613449283,-460.0,0.00020821,2]
[375276744,1753613449295,-460.0,0.00020821,2]
[375276745,1753613449306,-1290.92,0.00020821,2]
[375276746,1753613449317,-3331.73,0.00020821,2]
[375276747,1753613449327,-460.0,0.00020821,2]
[375276748,1753613449337,-1781.4,0.00020821,2]
[375276749,1753613449347,-460.0,0.00020821,2]
[375276750,1753613449357,-598.51,0.00020821,2]
[375276751,1753613449367,-460.0,0.00020821,2]
[375276752,1753613449377,-1489.24,0.00020821,2]
[375276753,1753613449388,-1348.54,0.00020821,2]
[375276754,1753613449398,-533.33,0.00020821,2]
[375276755,1753613449408,-491.78,0.00020821,2]
[375276756,1753613449418,-1775.79,0.00020821,2]
[375276757,1753613449428,-560.49,0.00020821,2]
[375276758,1753613449438,-460.0,0.00020821,2]
[375276759,1753613449448,-460.0,0.00020821,2]
[375276760,1753613449458,-941.06,0.00020821,2]
[375276761,1753613449469,-460.0,0.00020821,2]
[375276762,1753613449479,-507.94,0.00020821,2]
[375276763,1753613449489,-460.0,0.00020821,2]
[375276764,1753613449499,-460.0,0.00020821,2]
[375276765,1753613449509,-460.0,0.00020821,2]
[375276766,1753613449520,-151.0,0.00020821,2]
[375276767,1753613449532,-460.0,0.00020821,2]
[375276768,1753613449541,-1500.0,0.00020868,2]
[375276769,1753613449552,-348.42586761,0.00020868,2]
[375276770,1753613449562,-381.5,0.00020908,2]
[375276771,1753613449572,-4093.36480933,0.00020934,4]
[375276772,1753613449582,-260.0,0.00020998,2]
[375276773,1753613449593,-667.61,0.00021095,2]
[375276774,1753613449603,-460.0,0.00021095,2]
[375276775,1753613449615,-460.0,0.00021095,2]
[375276776,1753613449626,-460.0,0.00021095,2]
[375276777,1753613449635,-460.0,0.00021095,2]